[Event "FIDE Grand Swiss 2023"]
[Site "Villa Marina, Douglas, Isle of Man"]
[Date "2023.10.25"]
[Round "1.44"]
[White "Cheparinov, Ivan"]
[Black "Parligras, Mircea-Emilian"]
[Result "1-0"]
[WhiteElo "2658"]
[BlackElo "2561"]
[EventDate "2023.10.25"]
[ECO "A07"]
[PlyCount "103"]
[BlackFideId "1204297"]
[TimeControl "40/100 + 20/50 + 15 + 30s/move"]
[WhiteFideId "2905540"]

1.Nf3 {[%clk 01:40:56] [%emt 00:00:04]} 1...d5 {[%clk 01:40:48] [%emt 00:00:12]} 
2.g3 {[%clk 01:41:21] [%emt 00:00:05]} 2...Nd7 {[%clk 01:41:02] [%emt 00:00:16]} 
3.d4 {[%clk 01:41:42] [%emt 00:00:09]} 3...Nb6 {[%clk 01:41:22] [%emt 00:00:09]} 
4.b3 {[%clk 01:40:58] [%emt 00:01:15]} 4...c6 {[%clk 01:38:42] [%emt 00:03:10]} 
5.a4 {[%clk 01:39:39] [%emt 00:01:49]} 5...a5 {[%clk 01:38:20] [%emt 00:00:51]} 
6.Bg2 {[%clk 01:39:33] [%emt 00:00:36]} 6...Nf6 {[%clk 01:38:28] [%emt
00:00:22]} 7.O-O {[%clk 01:38:25] [%emt 00:01:38]} 7...Bf5 {[%clk 01:32:30]
[%emt 00:06:29]} 8.Nh4 {[%clk 01:38:40] [%emt 00:00:14]} 8...Be4 {[%clk
01:24:34] [%emt 00:08:27]} 9.f3 {[%clk 01:39:03] [%emt 00:00:06]} 9...Bg6 
{[%clk 01:25:01] [%emt 00:00:04]} 10.Nxg6 {[%clk 01:31:17] [%emt 00:08:16]} 
10...hxg6 {[%clk 01:25:26] [%emt 00:00:04]} 11.c3 {[%clk 01:28:47] [%emt
00:03:01]} 11...Nbd7 {[%clk 01:22:04] [%emt 00:03:51]} 12.e4 {[%clk 01:28:02]
[%emt 00:01:16]} 12...dxe4 {[%clk 01:17:56] [%emt 00:04:38]} 13.fxe4 {[%clk
01:28:30] [%emt 00:00:02]} 13...e5 {[%clk 01:18:08] [%emt 00:00:18]} 14.Be3 
{[%clk 01:18:16] [%emt 00:10:44]} 14...Be7 {[%clk 01:16:39] [%emt 00:01:59]} 
15.Nd2 {[%clk 01:18:10] [%emt 00:00:36]} 15...O-O {[%clk 01:11:52] [%emt
00:05:16]} 16.Kh1 {[%clk 01:14:04] [%emt 00:04:37]} 16...Qc7 {[%clk 01:01:36]
[%emt 00:10:46]} 17.Nc4 {[%clk 01:02:05] [%emt 00:12:28]} 17...b5 {[%clk
00:47:14] [%emt 00:14:53]} 18.Nxe5 {[%clk 00:56:47] [%emt 00:05:48]} 18...Nxe5 
{[%clk 00:46:26] [%emt 00:01:17]} 19.dxe5 {[%clk 00:57:15] [%emt 00:00:03]} 
19...Qxe5 {[%clk 00:35:32]} 20.Bd4 {[%clk 00:56:52] [%emt 00:12:16]} 20...Qe6 
{[%clk 00:35:56] [%emt 00:00:06]} 21.e5 {[%clk 00:51:41] [%emt 00:05:42]} 
21...Nd5 {[%clk 00:36:15] [%emt 00:00:11]} 22.axb5 {[%clk 00:51:52] [%emt
00:00:19]} 22...cxb5 {[%clk 00:36:41] [%emt 00:00:04]} 23.Qd3 {[%clk 00:40:26]
[%emt 00:11:56]} 23...Rfb8 {[%clk 00:26:40] [%emt 00:10:31]} 24.Rad1 {[%clk
00:26:33] [%emt 00:14:23]} 24...Nc7 {[%clk 00:13:25] [%emt 00:13:45]} 25.Bxa8 
{[%clk 00:24:50] [%emt 00:02:13]} 25...Rxa8 {[%clk 00:13:53] [%emt 00:00:02]} 
26.Qf3 {[%clk 00:24:41] [%emt 00:00:39]} 26...Ra6 {[%clk 00:09:23] [%emt
00:05:00]} 27.Rd3 {[%clk 00:18:09] [%emt 00:07:02]} 27...a4 {[%clk 00:07:41]
[%emt 00:02:12]} 28.bxa4 {[%clk 00:14:51] [%emt 00:03:48]} 28...bxa4 {[%clk
00:05:01] [%emt 00:03:11]} 29.Qb7 {[%clk 00:11:09] [%emt 00:04:10]} 29...Qd5+ 
{[%clk 00:02:43] [%emt 00:02:49]} 30.Qxd5 {[%clk 00:11:30] [%emt 00:00:09]} 
30...Nxd5 {[%clk 00:03:11] [%emt 00:00:02]} 31.Bg1 {[%clk 00:05:31] [%emt
00:06:28]} 31...Nb6 {[%clk 00:02:08] [%emt 00:01:34]} 32.Bxb6 {[%clk 00:02:33]
[%emt 00:03:28]} 32...Rxb6 {[%clk 00:02:37] [%emt 00:00:01]} 33.Rd7 {[%clk
00:02:58] [%emt 00:00:05]} 33...Re6 {[%clk 00:02:13] [%emt 00:00:54]} 34.Ra7 
{[%clk 00:03:25] [%emt 00:00:03]} 34...f5 {[%clk 00:01:42] [%emt 00:01:01]} 
35.exf6 {[%clk 00:03:17] [%emt 00:00:38]} 35...Bxf6 {[%clk 00:02:06] [%emt
00:00:05]} 36.c4 {[%clk 00:03:35] [%emt 00:00:13]} 36...Re2 {[%clk 00:02:08]
[%emt 00:00:27]} 37.Ra8+ {[%clk 00:03:52] [%emt 00:00:14]} 37...Kf7 {[%clk
00:02:08] [%emt 00:00:30]} 38.Rxa4 {[%clk 00:04:17] [%emt 00:00:05]} 38...Rc2 
{[%clk 00:02:28] [%emt 00:00:10]} 39.Ra7+ {[%clk 00:01:44] [%emt 00:03:04]} 
39...Ke6 {[%clk 00:02:45] [%emt 00:00:11]} 40.Ra6+ {[%clk 00:02:06] [%emt
00:00:09]} 40...Ke5 {[%clk 00:02:25] [%emt 00:00:50]} 41.Rf4 {[%clk 00:49:50]
[%emt 00:02:46]} 41...Re2 {[%clk 00:49:56] [%emt 00:02:59]} 42.h4 {[%clk
00:47:56] [%emt 00:02:24]} 42...Rc2 {[%clk 00:49:44] [%emt 00:00:42]} 43.Kg1 
{[%clk 00:47:21] [%emt 00:01:04]} 43...Re2 {[%clk 00:49:54] [%emt 00:00:20]} 
44.Kf1 {[%clk 00:46:54] [%emt 00:00:57]} 44...Rc2 {[%clk 00:50:20] [%emt
00:00:05]} 45.Ra5+ {[%clk 00:46:45] [%emt 00:00:39]} 45...Kd6 {[%clk 00:50:39]
[%emt 00:00:10]} 46.Rg4 {[%clk 00:46:30] [%emt 00:00:46]} 46...Ke6 {[%clk
00:50:51] [%emt 00:00:18]} 47.Rxg6 {[%clk 00:44:34] [%emt 00:02:26]} 47...Rxc4 
{[%clk 00:51:15] [%emt 00:00:06]} 48.Kg2 {[%clk 00:44:40] [%emt 00:00:24]} 
48...Kf7 {[%clk 00:50:53] [%emt 00:00:52]} 49.h5 {[%clk 00:45:04] [%emt
00:00:06]} 49...Rc2+ {[%clk 00:50:47] [%emt 00:00:35]} 50.Kh3 {[%clk 00:45:29]
[%emt 00:00:05]} 50...Rc1 {[%clk 00:51:13] [%emt 00:00:05]} 51.Ra7+ {[%clk
00:45:12] [%emt 00:00:47]} 51...Kg8 {[%clk 00:51:30] [%emt 00:00:13]} 52.h6 
{[%clk 00:45:07] [%emt 00:00:34]} 1-0

[Event "FIDE Grand Swiss 2023"]
[Site "Villa Marina, Douglas, Isle of Man"]
[Date "2023.10.25"]
[Round "1.45"]
[White "Lazavik, Denis"]
[Black "Korobov, Anton"]
[Result "1/2-1/2"]
[WhiteElo "2560"]
[BlackElo "2658"]
[EventDate "2023.10.25"]
[ECO "E15"]
[PlyCount "60"]
[BlackFideId "14105730"]
[TimeControl "40/100 + 20/50 + 15 + 30s/move"]
[WhiteFideId "13515110"]

1.d4 {[%clk 01:40:51] [%emt 00:00:07]} 1...Nf6 {[%clk 01:40:50] [%emt 00:00:11]} 
2.c4 {[%clk 01:41:02] [%emt 00:00:19]} 2...e6 {[%clk 01:41:13] [%emt 00:00:07]} 
3.Nf3 {[%clk 01:41:04] [%emt 00:00:27]} 3...b6 {[%clk 01:41:12] [%emt 00:00:32]} 
4.g3 {[%clk 01:40:46] [%emt 00:00:47]} 4...Ba6 {[%clk 01:40:49] [%emt 00:00:53]} 
5.b3 {[%clk 01:36:59] [%emt 00:04:16]} 5...Bb4+ {[%clk 01:40:43] [%emt
00:00:37]} 6.Bd2 {[%clk 01:36:47] [%emt 00:00:41]} 6...Be7 {[%clk 01:41:05]
[%emt 00:00:09]} 7.Bg2 {[%clk 01:35:35] [%emt 00:01:41]} 7...O-O {[%clk
01:39:41] [%emt 00:01:55]} 8.O-O {[%clk 01:34:14] [%emt 00:01:50]} 8...d5 
{[%clk 01:38:21] [%emt 00:01:51]} 9.Ne5 {[%clk 01:31:15] [%emt 00:03:28]} 
9...Bb7 {[%clk 01:33:25] [%emt 00:05:28]} 10.Nc3 {[%clk 01:28:49] [%emt
00:02:55]} 10...Nbd7 {[%clk 01:33:03] [%emt 00:00:53]} 11.Bf4 {[%clk 01:25:24]
[%emt 00:03:54]} 11...c5 {[%clk 01:17:09] [%emt 00:16:25]} 12.Rc1 {[%clk
01:18:41] [%emt 00:07:13]} 12...Rc8 {[%clk 01:04:33] [%emt 00:13:07]} 13.cxd5 
{[%clk 01:08:16] [%emt 00:10:53]} 13...Nxd5 {[%clk 00:58:32] [%emt 00:06:32]} 
14.Nxd5 {[%clk 01:05:17] [%emt 00:03:28]} 14...Bxd5 {[%clk 00:57:38] [%emt
00:01:25]} 15.e4 {[%clk 01:01:32] [%emt 00:04:14]} 15...Ba8 {[%clk 00:55:27]
[%emt 00:02:42]} 16.d5 {[%clk 01:00:46] [%emt 00:01:16]} 16...Nxe5 {[%clk
00:52:42] [%emt 00:03:15]} 17.Bxe5 {[%clk 01:01:09] [%emt 00:00:06]} 17...Bd6 
{[%clk 00:52:07] [%emt 00:01:05]} 18.Bb2 {[%clk 00:59:06] [%emt 00:02:33]} 
18...exd5 {[%clk 00:49:59] [%emt 00:02:39]} 19.exd5 {[%clk 00:59:22] [%emt
00:00:13]} 19...Qd7 {[%clk 00:48:56] [%emt 00:01:34]} 20.Qh5 {[%clk 00:55:55]
[%emt 00:03:56]} 20...Rce8 {[%clk 00:48:03] [%emt 00:01:23]} 21.Rc4 {[%clk
00:53:07] [%emt 00:03:18]} 21...f6 {[%clk 00:42:54] [%emt 00:05:40]} 22.Bh3 
{[%clk 00:29:12] [%emt 00:24:25]} 22...f5 {[%clk 00:40:17] [%emt 00:03:06]} 
23.Rh4 {[%clk 00:28:27] [%emt 00:01:15]} 23...h6 {[%clk 00:39:56] [%emt
00:00:52]} 24.Qg6 {[%clk 00:18:42] [%emt 00:10:15]} 24...Be5 {[%clk 00:38:14]
[%emt 00:02:12]} 25.Bxe5 {[%clk 00:18:49] [%emt 00:00:23]} 25...Rxe5 {[%clk
00:38:38] [%emt 00:00:06]} 26.Rxh6 {[%clk 00:19:13] [%emt 00:00:05]} 26...Qxd5 
{[%clk 00:36:45] [%emt 00:02:24]} 27.Qh7+ {[%clk 00:19:20] [%emt 00:00:22]} 
27...Kf7 {[%clk 00:37:13] [%emt 00:00:03]} 28.Qg6+ {[%clk 00:19:43] [%emt
00:00:07]} 28...Kg8 {[%clk 00:34:28] [%emt 00:03:14]} 29.Qh7+ {[%clk 00:20:08]
[%emt 00:00:06]} 29...Kf7 {[%emt 00:00:05]} 30.Qg6+ {[%clk 00:20:32] [%emt
00:00:04]} 30...Kg8 {[%clk 00:24:16] [%emt 00:11:09]} 1/2-1/2

[Event "FIDE Grand Swiss 2023"]
[Site "Villa Marina, Douglas, Isle of Man"]
[Date "2023.10.25"]
[Round "1.46"]
[White "Sindarov, Javokhir"]
[Black "Maurizzi, Marc`andria"]
[Result "1/2-1/2"]
[WhiteElo "2658"]
[BlackElo "2555"]
[EventDate "2023.10.25"]
[ECO "C65"]
[PlyCount "102"]
[BlackFideId "36083534"]
[TimeControl "40/100 + 20/50 + 15 + 30s/move"]
[WhiteFideId "14205483"]

1.e4 {[%clk 01:40:58] [%emt 00:00:02]} 1...e5 {[%clk 01:40:41] [%emt 00:00:19]} 
2.Nf3 {[%clk 01:41:22] [%emt 00:00:05]} 2...Nc6 {[%clk 01:40:32] [%emt
00:00:39]} 3.Bb5 {[%clk 01:41:47] [%emt 00:00:06]} 3...Nf6 {[%clk 01:40:05]
[%emt 00:00:56]} 4.d3 {[%clk 01:40:26] [%emt 00:01:52]} 4...Bc5 {[%clk 01:38:30]
[%emt 00:02:03]} 5.Bg5 {[%clk 01:39:26] [%emt 00:01:32]} 5...h6 {[%clk 01:31:14]
[%emt 00:07:45]} 6.Bh4 {[%clk 01:39:51] [%emt 00:00:06]} 6...d6 {[%clk 01:22:29]
[%emt 00:09:16]} 7.Nc3 {[%clk 01:37:58] [%emt 00:02:23]} 7...g5 {[%clk 01:19:34]
[%emt 00:03:24]} 8.Bg3 {[%clk 01:38:20] [%emt 00:00:08]} 8...Bd7 {[%clk
01:17:01] [%emt 00:03:03]} 9.Na4 {[%clk 01:38:27] [%emt 00:00:24]} 9...Bb6 
{[%clk 01:14:13] [%emt 00:03:17]} 10.Nxb6 {[%clk 01:30:16] [%emt 00:08:40]} 
10...axb6 {[%clk 01:14:39] [%emt 00:00:05]} 11.a4 {[%clk 01:30:33] [%emt
00:00:13]} 11...Ne7 {[%clk 01:09:00] [%emt 00:06:09]} 12.O-O {[%clk 01:03:07]
[%emt 00:27:56]} 12...Ng6 {[%clk 01:07:32] [%emt 00:01:58]} 13.Qe2 {[%clk
00:57:34] [%emt 00:06:01]} 13...h5 {[%clk 00:54:24] [%emt 00:13:40]} 14.h4 
{[%clk 00:45:49] [%emt 00:12:15]} 14...c6 {[%clk 00:48:48] [%emt 00:06:05]} 
15.Bc4 {[%clk 00:45:59] [%emt 00:00:20]} 15...Nh7 {[%clk 00:43:26] [%emt
00:05:53]} 16.hxg5 {[%clk 00:45:21] [%emt 00:01:08]} 16...Nxg5 {[%clk 00:34:39]
[%emt 00:09:17]} 17.Qe3 {[%clk 00:45:13] [%emt 00:00:37]} 17...Nxf3+ {[%clk
00:32:03] [%emt 00:03:06]} 18.Qxf3 {[%clk 00:45:03] [%emt 00:00:41]} 18...Be6 
{[%clk 00:32:24] [%emt 00:00:09]} 19.Bxe6 {[%clk 00:43:21] [%emt 00:02:13]} 
19...fxe6 {[%clk 00:32:36] [%emt 00:00:17]} 20.Qe3 {[%clk 00:43:24] [%emt
00:00:27]} 20...h4 {[%clk 00:29:04] [%emt 00:04:02]} 21.Bh2 {[%clk 00:43:37]
[%emt 00:00:17]} 21...Qf6 {[%clk 00:26:06] [%emt 00:03:28]} 22.c3 {[%clk
00:34:51] [%emt 00:09:15]} 22...Nf4 {[%clk 00:23:03] [%emt 00:03:33]} 23.Kh1 
{[%clk 00:34:14] [%emt 00:01:08]} 23...Qg5 {[%clk 00:18:15] [%emt 00:05:18]} 
24.Rg1 {[%clk 00:33:29] [%emt 00:01:15]} 24...c5 {[%clk 00:17:13] [%emt
00:01:32]} 25.d4 {[%clk 00:33:11] [%emt 00:00:48]} 25...Kf7 {[%clk 00:17:17]
[%emt 00:00:26]} 26.b4 {[%clk 00:30:12] [%emt 00:03:29]} 26...cxd4 {[%clk
00:15:38] [%emt 00:02:09]} 27.cxd4 {[%clk 00:30:35] [%emt 00:00:07]} 27...Qg4 
{[%clk 00:15:38] [%emt 00:00:29]} 28.dxe5 {[%clk 00:22:45] [%emt 00:08:21]} 
28...dxe5 {[%clk 00:15:41] [%emt 00:00:27]} 29.Ra3 {[%clk 00:22:54] [%emt
00:00:21]} 29...Rad8 {[%clk 00:13:37] [%emt 00:02:34]} 30.Qxb6 {[%clk 00:19:14]
[%emt 00:04:09]} 30...Rd1 {[%clk 00:10:33] [%emt 00:03:34]} 31.Qxb7+ {[%clk
00:09:58] [%emt 00:09:47]} 31...Ke8 {[%clk 00:10:46] [%emt 00:00:16]} 32.Qc8+ 
{[%clk 00:05:00] [%emt 00:05:24]} 32...Kf7 {[%clk 00:11:03] [%emt 00:00:18]} 
33.Qc7+ {[%clk 00:05:26] [%emt 00:00:03]} 33...Ke8 {[%clk 00:11:10] [%emt
00:00:23]} 34.Qb8+ {[%clk 00:05:10] [%emt 00:00:46]} 34...Kf7 {[%clk 00:11:32]
[%emt 00:00:09]} 35.Qb7+ {[%clk 00:05:35] [%emt 00:00:04]} 35...Ke8 {[%clk
00:11:58] [%emt 00:00:04]} 36.Qb5+ {[%clk 00:04:56] [%emt 00:01:09]} 36...Kf7 
{[%clk 00:12:25] [%emt 00:00:04]} 37.Bxf4 {[%clk 00:04:51] [%emt 00:00:34]} 
37...h3 {[%clk 00:12:50] [%emt 00:00:06]} 38.Qb7+ {[%clk 00:04:35] [%emt
00:00:45]} 38...Ke8 {[%clk 00:13:13] [%emt 00:00:07]} 39.Qc8+ {[%clk 00:04:27]
[%emt 00:00:39]} 39...Kf7 {[%clk 00:13:38] [%emt 00:00:05]} 40.Qb7+ {[%clk
00:04:53] [%emt 00:00:04]} 40...Ke8 {[%clk 00:14:02] [%emt 00:00:05]} 41.Qb5+ 
{[%clk 00:03:40] [%emt 00:01:41]} 41...Kf7 {[%clk 00:13:56] [%emt 00:00:38]} 
42.Bg3 {[%clk 00:37:35] [%emt 00:16:37]} 42...hxg2+ {[%clk 01:01:43] [%emt
00:02:42]} 43.Kxg2 {[%clk 00:37:57] [%emt 00:00:08]} 43...Qh3+ {[%clk 00:58:49]
[%emt 00:03:23]} 44.Kf3 {[%clk 00:38:19] [%emt 00:00:09]} 44...Qh5+ {[%clk
00:56:17] [%emt 00:03:01]} 45.Ke3 {[%clk 00:38:30] [%emt 00:00:19]} 45...Rxg1 
{[%clk 00:56:41] [%emt 00:00:07]} 46.Qxe5 {[%clk 00:24:58] [%emt 00:14:02]} 
46...Re1+ {[%clk 00:51:49] [%emt 00:05:20]} 47.Kf4 {[%clk 00:25:24] [%emt
00:00:05]} 47...Qh6+ {[%clk 00:51:06] [%emt 00:01:13]} 48.Kf3 {[%clk 00:24:09]
[%emt 00:01:46]} 48...Qh1+ {[%clk 00:44:18] [%emt 00:07:17]} 49.Kf4 {[%clk
00:24:15] [%emt 00:00:25]} 49...Qh6+ {[%clk 00:38:11] [%emt 00:06:36]} 50.Kf3 
{[%emt 00:07:48]} 50...Qh1+ {[%clk 00:31:00]} 51.Kf4 Qh6+ {[%clk 00:31:00]} 1/2-1/2

[Event "FIDE Grand Swiss 2023"]
[Site "Villa Marina, Douglas, Isle of Man"]
[Date "2023.10.25"]
[Round "1.47"]
[White "Adhiban, B."]
[Black "Predke, Alexandr"]
[Result "0-1"]
[WhiteElo "2551"]
[BlackElo "2656"]
[EventDate "2023.10.25"]
[ECO "B30"]
[PlyCount "48"]
[BlackFideId "24107581"]
[TimeControl "40/100 + 20/50 + 15 + 30s/move"]
[WhiteFideId "5018471"]

1.e4 {[%clk 01:40:54] [%emt 00:00:06]} 1...c5 {[%clk 01:40:08] [%emt 00:00:53]} 
2.Nf3 {[%clk 01:41:17] [%emt 00:00:06]} 2...Nc6 {[%clk 01:40:32] [%emt
00:00:06]} 3.Nc3 {[%clk 01:41:17] [%emt 00:00:30]} 3...g6 {[%clk 01:40:51] [%emt
00:00:12]} 4.Bb5 {[%clk 01:38:08] [%emt 00:03:39]} 4...Bg7 {[%clk 01:41:13]
[%emt 00:00:08]} 5.O-O {[%clk 01:38:35] [%emt 00:00:02]} 5...d6 {[%clk 01:41:24]
[%emt 00:00:19]} 6.e5 {[%clk 01:37:38] [%emt 00:01:27]} 6...dxe5 {[%clk
01:41:35] [%emt 00:00:19]} 7.Bxc6+ {[%clk 01:37:52] [%emt 00:00:17]} 7...bxc6 
{[%clk 01:42:00] [%emt 00:00:05]} 8.Re1 {[%clk 01:38:20] [%emt 00:00:02]} 
8...Qc7 {[%clk 01:42:03] [%emt 00:00:28]} 9.d3 {[%clk 01:38:13] [%emt 00:00:37]} 
9...c4 {[%clk 01:41:51] [%emt 00:00:42]} 10.d4 {[%clk 01:24:19] [%emt 00:14:24]} 
10...exd4 {[%clk 01:22:17] [%emt 00:20:04]} 11.Nxd4 {[%clk 01:24:44] [%emt
00:00:05]} 11...Qd7 {[%clk 01:18:17] [%emt 00:04:30]} 12.Be3 {[%clk 01:21:21]
[%emt 00:03:52]} 12...Nf6 {[%clk 01:17:06] [%emt 00:01:41]} 13.Qe2 {[%clk
01:11:28] [%emt 00:10:23]} 13...Nd5 {[%clk 01:15:03] [%emt 00:02:33]} 14.Rad1 
{[%clk 01:06:52] [%emt 00:05:07]} 14...Nxe3 {[%clk 00:59:25] [%emt 00:16:08]} 
15.Qxe3 {[%clk 01:07:14] [%emt 00:00:08]} 15...O-O {[%clk 00:59:44] [%emt
00:00:10]} 16.Qe4 {[%clk 00:40:44] [%emt 00:27:01]} 16...Qb7 {[%clk 00:38:05]
[%emt 00:22:08]} 17.Nxc6 {[%clk 00:39:03] [%emt 00:02:12]} 17...Be6 {[%clk
00:38:09] [%emt 00:00:25]} 18.Nd5 {[%clk 00:35:08] [%emt 00:04:25]} 18...Kh8 
{[%clk 00:37:57] [%emt 00:00:42]} 19.Ndxe7 {[%clk 00:28:20] [%emt 00:07:18]} 
19...Qxb2 {[%clk 00:22:54] [%emt 00:15:34]} 20.Nd4 {[%clk 00:25:51] [%emt
00:02:59]} 20...Rae8 {[%clk 00:21:39] [%emt 00:01:44]} 21.Qh4 {[%clk 00:20:01]
[%emt 00:06:20]} 21...g5 {[%clk 00:16:34] [%emt 00:05:35]} 22.Qxg5 {[%clk
00:09:38] [%emt 00:10:53]} 22...Bxd4 {[%clk 00:16:59] [%emt 00:00:06]} 23.Nf5 
{[%clk 00:06:15] [%emt 00:03:53]} 23...Bxf2+ {[%clk 00:15:54] [%emt 00:01:34]} 
24.Kxf2 {[%clk 00:06:27] [%emt 00:00:18]} 24...Qxc2+ {[%clk 00:16:20] [%emt
00:00:04]} 0-1

[Event "FIDE Grand Swiss 2023"]
[Site "Villa Marina, Douglas, Isle of Man"]
[Date "2023.10.25"]
[Round "1.48"]
[White "Shirov, Alexei"]
[Black "Fawzy, Adham"]
[Result "1-0"]
[WhiteElo "2655"]
[BlackElo "2535"]
[EventDate "2023.10.25"]
[ECO "B33"]
[PlyCount "99"]
[BlackFideId "10613129"]
[TimeControl "40/100 + 20/50 + 15 + 30s/move"]
[WhiteFideId "2209390"]

1.e4 {[%clk 01:40:58]} 1...c5 {[%clk 01:40:48] [%emt 00:00:13]} 2.Nf3 {[%clk
01:41:23] [%emt 00:00:05]} 2...Nc6 {[%clk 01:41:12] [%emt 00:00:06]} 3.d4 
{[%clk 01:41:48] [%emt 00:00:04]} 3...cxd4 {[%clk 01:41:33] [%emt 00:00:10]} 
4.Nxd4 {[%clk 01:42:14] [%emt 00:00:04]} 4...Nf6 {[%clk 01:41:53] [%emt
00:00:10]} 5.Nc3 {[%clk 01:42:39] [%emt 00:00:05]} 5...e5 {[%clk 01:42:17] [%emt
00:00:06]} 6.Ndb5 {[%clk 01:43:05] [%emt 00:00:03]} 6...d6 {[%clk 01:42:40]
[%emt 00:00:08]} 7.Nd5 {[%clk 01:43:32] [%emt 00:00:03]} 7...Nxd5 {[%clk
01:43:00] [%emt 00:00:10]} 8.exd5 {[%clk 01:43:59] [%emt 00:00:03]} 8...Ne7 
{[%clk 01:43:21] [%emt 00:00:09]} 9.c4 {[%clk 01:44:09] [%emt 00:00:19]} 
9...Ng6 {[%clk 01:43:39] [%emt 00:00:12]} 10.Qa4 {[%clk 01:42:18] [%emt
00:02:21]} 10...Bd7 {[%clk 01:43:10] [%emt 00:01:00]} 11.Qb4 {[%clk 01:42:13]
[%emt 00:00:35]} 11...Qb8 {[%clk 01:43:36] [%emt 00:00:04]} 12.h4 {[%clk
01:40:11] [%emt 00:02:32]} 12...h5 {[%clk 01:42:32] [%emt 00:01:34]} 13.Be3 
{[%clk 01:26:45] [%emt 00:13:55]} 13...a6 {[%clk 01:39:39] [%emt 00:03:24]} 
14.Nc3 {[%clk 01:27:07] [%emt 00:00:07]} 14...Be7 {[%clk 01:39:57] [%emt
00:00:12]} 15.g3 {[%clk 01:18:07] [%emt 00:09:30]} 15...O-O {[%clk 01:35:20]
[%emt 00:05:07]} 16.Be2 {[%clk 01:14:30] [%emt 00:04:07]} 16...b5 {[%clk
01:35:24] [%emt 00:00:26]} 17.cxb5 {[%clk 01:09:40] [%emt 00:05:21]} 17...axb5 
{[%clk 01:35:16] [%emt 00:00:38]} 18.O-O {[%clk 01:04:42] [%emt 00:05:26]} 
18...f5 {[%clk 01:29:57] [%emt 00:05:51]} 19.Bxh5 {[%clk 01:03:49] [%emt
00:01:23]} 19...Nxh4 {[%clk 01:29:48] [%emt 00:00:39]} 20.f4 {[%clk 00:59:15]
[%emt 00:05:04]} 20...Be8 {[%clk 01:25:13] [%emt 00:05:04]} 21.Be2 {[%clk
00:43:13] [%emt 00:16:32]} 21...exf4 {[%clk 01:17:29] [%emt 00:08:15]} 22.Rxf4 
{[%clk 00:38:25] [%emt 00:05:17]} 22...Ng6 {[%clk 01:16:00] [%emt 00:01:59]} 
23.Rf2 {[%clk 00:38:50] [%emt 00:00:05]} 23...Bd7 {[%clk 01:03:11] [%emt
00:13:19]} 24.Nxb5 {[%clk 00:35:19] [%emt 00:04:02]} 24...Bf6 {[%clk 00:59:01]
[%emt 00:04:39]} 25.a4 {[%clk 00:30:54] [%emt 00:04:55]} 25...Be5 {[%clk
00:56:51] [%emt 00:02:40]} 26.Rf3 {[%clk 00:23:51] [%emt 00:07:33]} 26...Qd8 
{[%clk 00:48:35] [%emt 00:08:45]} 27.Raf1 {[%clk 00:22:32] [%emt 00:01:50]} 
27...Qf6 {[%clk 00:45:04] [%emt 00:04:02]} 28.b3 {[%clk 00:14:42] [%emt
00:08:19]} 28...f4 {[%clk 00:32:46] [%emt 00:12:49]} 29.gxf4 {[%clk 00:15:05]
[%emt 00:00:07]} 29...Nh4 {[%clk 00:32:43] [%emt 00:00:33]} 30.Rg3 {[%clk
00:15:29] [%emt 00:00:05]} 30...Nf5 {[%clk 00:32:11] [%emt 00:01:02]} 31.fxe5 
{[%clk 00:15:52] [%emt 00:00:07]} 31...Qxe5 {[%clk 00:32:27] [%emt 00:00:15]} 
32.Rgf3 {[%clk 00:09:40] [%emt 00:06:41]} 32...Rf6 {[%clk 00:31:40] [%emt
00:01:17]} 33.Qf4 {[%clk 00:09:50] [%emt 00:00:20]} 33...Rg6+ {[%clk 00:23:03]
[%emt 00:09:08]} 34.Kf2 {[%clk 00:10:02] [%emt 00:00:18]} 34...Qb2 {[%clk
00:17:07] [%emt 00:06:27]} 35.Bd4 {[%clk 00:10:04] [%emt 00:00:27]} 35...Qc2 
{[%clk 00:16:07] [%emt 00:01:30]} 36.Rc1 {[%clk 00:08:32] [%emt 00:02:02]} 
36...Qa2 {[%clk 00:16:34] [%emt 00:00:03]} 37.Ra1 {[%clk 00:08:50] [%emt
00:00:11]} 37...Qc2 {[%clk 00:16:44] [%emt 00:00:21]} 38.Rc3 {[%clk 00:07:09]
[%emt 00:02:11]} 38...Rg2+ {[%clk 00:17:04] [%emt 00:00:11]} 39.Kxg2 {[%clk
00:07:36] [%emt 00:00:03]} 39...Qxe2+ {[%clk 00:17:26] [%emt 00:00:08]} 40.Bf2 
{[%clk 00:07:05] [%emt 00:01:00]} 40...Rf8 {[%clk 00:16:25] [%emt 00:01:31]} 
41.Nd4 {[%clk 00:46:08] [%emt 00:11:27]} 41...Qh5 {[%clk 01:04:30] [%emt
00:02:25]} 42.Rh1 {[%clk 00:41:31] [%emt 00:05:07]} 42...Qg6+ {[%clk 00:59:43]
[%emt 00:05:18]} 43.Kf1 {[%clk 00:41:03] [%emt 00:00:57]} 43...Rf6 {[%clk
00:59:20] [%emt 00:00:54]} 44.Rg1 {[%clk 00:33:27] [%emt 00:08:05]} 44...Qh5 
{[%clk 00:58:32] [%emt 00:01:18]} 45.Ke1 {[%clk 00:33:01] [%emt 00:00:55]} 
45...Qe8+ {[%clk 00:54:12] [%emt 00:04:51]} 46.Be3 {[%clk 00:32:47] [%emt
00:00:44]} 46...Qf8 {[%clk 00:52:03] [%emt 00:02:40]} 47.Nxf5 {[%clk 00:29:50]
[%emt 00:03:27]} 47...Rxf5 {[%clk 00:52:29] [%emt 00:00:03]} 48.Qh4 {[%clk
00:28:49] [%emt 00:01:30]} 48...Qe8 {[%clk 00:46:57] [%emt 00:06:03]} 49.Kd2 
{[%clk 00:27:38] [%emt 00:01:40]} 49...Rh5 {[%clk 00:46:19] [%emt 00:01:09]} 
50.Qf6 {[%clk 00:27:10] [%emt 00:00:58]} 1-0